[Event "*** Titled Tuesday 3|2 Blitz"]
[Site "Chess.com"]
[Date "2016.03.01"]
[Round "7"]
[White "chessking2151"]
[Black "djgwards"]
[Result "0-1"]
[WhiteElo "2310"]
[BlackElo "2262"]
[TimeControl "180+2"]
[EndTime "18:24:13 PST"]
[Termination "djgwards won by resignation"]

1. e4 {[%clk 0:03:01.9]} 1... e5 {[%clk 0:02:59.7]} 2. Nf3 {[%clk 0:03:01.5]}
2... Nc6 {[%clk 0:03:00.6]} 3. Bb5 {[%clk 0:03:01.9]} 3... a6 {[%clk 0:03:01.5]}
4. Ba4 {[%clk 0:03:02.7]} 4... Nf6 {[%clk 0:03:01.9]} 5. O-O {[%clk 0:03:03.3]}
5... Be7 {[%clk 0:03:03]} 6. d3 {[%clk 0:03:03.8]} 6... b5 {[%clk 0:03:02.9]} 7.
Bb3 {[%clk 0:03:04.5]} 7... d6 {[%clk 0:03:03.3]} 8. a4 {[%clk 0:03:04.3]} 8...
Rb8 {[%clk 0:03:02.9]} 9. Nc3 {[%clk 0:03:02.4]} 9... O-O {[%clk 0:03:02.6]} 10.
Nd5 {[%clk 0:03:00.8]} 10... Nxd5 {[%clk 0:03:00.1]} 11. Bxd5 {[%clk 0:02:59.6]}
11... Nb4 {[%clk 0:02:49.8]} 12. Bb3 {[%clk 0:02:58.8]} 12... c5 {[%clk
0:02:41.9]} 13. c3 {[%clk 0:02:58.2]} 13... Nc6 {[%clk 0:02:41.3]} 14. Bd5
{[%clk 0:02:59.5]} 14... Qc7 {[%clk 0:02:30.2]} 15. h3 {[%clk 0:02:49.6]} 15...
Be6 {[%clk 0:02:21]} 16. axb5 {[%clk 0:02:47.5]} 16... axb5 {[%clk 0:02:21.1]}
17. d4 {[%clk 0:02:47.5]} 17... exd4 {[%clk 0:02:16.8]} 18. cxd4 {[%clk
0:02:47.1]} 18... Bxd5 {[%clk 0:02:15.4]} 19. exd5 {[%clk 0:02:47.1]} 19... Nb4
{[%clk 0:02:15.9]} 20. dxc5 {[%clk 0:02:45.4]} 20... Qxc5 {[%clk 0:02:16.4]} 21.
Nd4 {[%clk 0:02:39.1]} 21... Qxd5 {[%clk 0:02:07.2]} 22. Ra3 {[%clk 0:02:18.8]}
22... Bf6 {[%clk 0:02:06.8]} 23. Be3 {[%clk 0:02:18.2]} 23... Rfc8 {[%clk
0:01:54.9]} 24. Qg4 {[%clk 0:02:12.8]} 24... h5 {[%clk 0:01:46.7]} 25. Qf4
{[%clk 0:01:51.3]} 25... Rc4 {[%clk 0:01:29.2]} 26. Rd1 {[%clk 0:01:49.7]} 26...
Re8 {[%clk 0:00:53.6]} 27. Rc3 {[%clk 0:01:22]} 27... Re4 {[%clk 0:00:48.6]} 28.
Qf3 {[%clk 0:01:18.6]} 28... Bxd4 {[%clk 0:00:45.9]} 29. Rd2 {[%clk 0:00:43.8]}
29... Rxe3 {[%clk 0:00:26.4]} 30. Rxe3 {[%clk 0:00:26.1]} 30... Rc1+ {[%clk
0:00:18.9]} 31. Kh2 {[%clk 0:00:26.5]} 31... Be5+ {[%clk 0:00:14.4]} 32. Rxe5
{[%clk 0:00:22.2]} 32... Qxe5+ {[%clk 0:00:15.1]} 33. g3 {[%clk 0:00:21.7]}
33... Qe1 {[%clk 0:00:12.1]} 0-1

[Event "*** Titled Tuesday 3|2 Blitz"]
[Site "Chess.com"]
[Date "2016.03.01"]
[Round "7"]
[White "Fins0905"]
[Black "jcibarra"]
[Result "0-1"]
[WhiteElo "2453"]
[BlackElo "2503"]
[TimeControl "180+2"]
[EndTime "18:24:18 PST"]
[Termination "jcibarra won on time"]

1. Nf3 {[%clk 0:03:01.9]} 1... Nf6 {[%clk 0:03:00.2]} 2. g3 {[%clk 0:03:00.6]}
2... g6 {[%clk 0:03:01.1]} 3. Bg2 {[%clk 0:03:01.4]} 3... Bg7 {[%clk 0:03:02.5]}
4. O-O {[%clk 0:03:02.4]} 4... d6 {[%clk 0:03:03.2]} 5. d4 {[%clk 0:03:03.6]}
5... O-O {[%clk 0:03:04.8]} 6. b3 {[%clk 0:03:04.8]} 6... a5 {[%clk 0:03:03.5]}
7. a4 {[%clk 0:03:04]} 7... Nc6 {[%clk 0:03:04.2]} 8. Bb2 {[%clk 0:03:01.8]}
8... Bf5 {[%clk 0:03:05.8]} 9. Nbd2 {[%clk 0:02:39.5]} 9... Qd7 {[%clk
0:03:04.6]} 10. Re1 {[%clk 0:02:38.1]} 10... Bh3 {[%clk 0:03:00.6]} 11. Bh1
{[%clk 0:02:37.5]} 11... Qf5 {[%clk 0:02:45.2]} 12. e4 {[%clk 0:02:14.9]} 12...
Qh5 {[%clk 0:02:45.9]} 13. Nh4 {[%clk 0:02:02.3]} 13... Ng4 {[%clk 0:02:39.2]}
14. f3 {[%clk 0:01:42.3]} 14... Nh6 {[%clk 0:02:23.4]} 15. Nf1 {[%clk
0:01:30.5]} 15... e5 {[%clk 0:02:09.3]} 16. d5 {[%clk 0:01:16.6]} 16... Ne7
{[%clk 0:02:09.1]} 17. f4 {[%clk 0:01:03.1]} 17... Bg4 {[%clk 0:02:05.7]} 18.
Qc1 {[%clk 0:00:41]} 18... exf4 {[%clk 0:02:06.2]} 19. Bxg7 {[%clk 0:00:40.3]}
19... Kxg7 {[%clk 0:02:07.1]} 20. Ng2 {[%clk 0:00:19.4]} 20... f3 {[%clk
0:01:57]} 21. Nf4 {[%clk 0:00:16.8]} 21... Qe5 {[%clk 0:01:56]} 22. c3 {[%clk
0:00:12.6]} 22... g5 {[%clk 0:01:37.8]} 23. Nd3 {[%clk 0:00:12.1]} 23... Qf6
{[%clk 0:01:39]} 24. Ne3 {[%clk 0:00:10.4]} 24... Ng6 {[%clk 0:01:32.9]} 25. Rf1
{[%clk 0:00:08.7]} 25... Bh5 {[%clk 0:01:32.3]} 26. g4 {[%clk 0:00:05.9]} 26...
Bxg4 {[%clk 0:01:26]} 27. Nxg4 {[%clk 0:00:06.9]} 27... Nxg4 {[%clk 0:01:27.9]}
28. Rxf3 {[%clk 0:00:08.2]} 28... Qe7 {[%clk 0:01:28.1]} 29. Rf5 {[%clk
0:00:08.1]} 29... h6 {[%clk 0:01:25.1]} 30. c4 {[%clk 0:00:09.3]} 30... N4e5
{[%clk 0:01:20.2]} 31. Qc3 {[%clk 0:00:08.3]} 31... b6 {[%clk 0:01:13.6]} 32.
Raf1 {[%clk 0:00:07.8]} 32... f6 {[%clk 0:01:12.9]} 33. Nc1 {[%clk 0:00:08.2]}
33... Nh4 {[%clk 0:01:11.8]} 34. R5f2 {[%clk 0:00:08.4]} 34... Rae8 {[%clk
0:01:06.4]} 35. Re2 {[%clk 0:00:04.6]} 35... Kh7 {[%clk 0:01:02.2]} 36. Qg3
{[%clk 0:00:04.5]} 36... Nhg6 {[%clk 0:00:59.9]} 37. Ref2 {[%clk 0:00:03.7]}
37... Nf4 {[%clk 0:00:59.5]} 38. Ne2 {[%clk 0:00:03.6]} 38... Ned3 {[%clk
0:00:53.9]} 0-1

[Event "*** Titled Tuesday 3|2 Blitz"]
[Site "Chess.com"]
[Date "2016.03.01"]
[Round "7"]
[White "Hikaru"]
[Black "GrigorGrigorov"]
[Result "1-0"]
[WhiteElo "2866"]
[BlackElo "2548"]
[TimeControl "180+2"]
[EndTime "18:24:28 PST"]
[Termination "Hikaru won by resignation"]

1. g3 {[%clk 0:03:01.9]} 1... d5 {[%clk 0:03:00]} 2. Nf3 {[%clk 0:03:02.4]} 2...
Nf6 {[%clk 0:03:01.4]} 3. d3 {[%clk 0:03:03.5]} 3... c6 {[%clk 0:03:01.4]} 4.
Bg2 {[%clk 0:03:04.6]} 4... Bg4 {[%clk 0:03:02.2]} 5. Nbd2 {[%clk 0:03:05.9]}
5... Nbd7 {[%clk 0:03:02.4]} 6. c4 {[%clk 0:03:06.8]} 6... dxc4 {[%clk
0:03:02.4]} 7. Nxc4 {[%clk 0:03:07.7]} 7... Bxf3 {[%clk 0:02:58]} 8. Bxf3 {[%clk
0:03:08.5]} 8... e5 {[%clk 0:02:58.9]} 9. O-O {[%clk 0:03:07.2]} 9... Be7 {[%clk
0:02:58.9]} 10. b4 {[%clk 0:03:08.3]} 10... O-O {[%clk 0:02:47.5]} 11. Qb3
{[%clk 0:03:08.6]} 11... a6 {[%clk 0:02:38.3]} 12. Bb2 {[%clk 0:03:09.4]} 12...
Qc7 {[%clk 0:02:37.2]} 13. Rac1 {[%clk 0:03:10.7]} 13... Rfe8 {[%clk 0:02:35.4]}
14. Bg2 {[%clk 0:03:05.7]} 14... Bf8 {[%clk 0:02:35]} 15. a3 {[%clk 0:03:06.3]}
15... e4 {[%clk 0:02:33.6]} 16. dxe4 {[%clk 0:03:01.3]} 16... Nxe4 {[%clk
0:02:32.6]} 17. Rfd1 {[%clk 0:03:02.9]} 17... Ndf6 {[%clk 0:02:29.1]} 18. Bd4
{[%clk 0:02:47.3]} 18... h5 {[%clk 0:02:06]} 19. Bb6 {[%clk 0:02:42.8]} 19...
Qc8 {[%clk 0:02:04.2]} 20. f3 {[%clk 0:02:41.1]} 20... Ng5 {[%clk 0:02:03.6]}
21. e4 {[%clk 0:02:42.5]} 21... h4 {[%clk 0:02:02.7]} 22. Be3 {[%clk 0:02:39.9]}
22... Ne6 {[%clk 0:01:34]} 23. Nb6 {[%clk 0:02:40.6]} 23... Qb8 {[%clk
0:01:32.6]} 24. f4 {[%clk 0:02:33.8]} 24... Ng4 {[%clk 0:01:28.1]} 25. Nxa8
{[%clk 0:02:32]} 25... Qxa8 {[%clk 0:01:22]} 26. Bh3 {[%clk 0:02:30.7]} 26...
Nxe3 {[%clk 0:01:18.7]} 27. Qxe3 {[%clk 0:02:32.6]} 27... a5 {[%clk 0:01:17.9]}
28. Bxe6 {[%clk 0:02:28.5]} 28... Rxe6 {[%clk 0:01:18.1]} 29. bxa5 {[%clk
0:02:23.7]} 29... Qxa5 {[%clk 0:01:17.5]} 30. Rd3 {[%clk 0:02:24.8]} 30... hxg3
{[%clk 0:01:17.2]} 31. hxg3 {[%clk 0:02:25.2]} 31... Qh5 {[%clk 0:01:17.8]} 32.
Qf3 {[%clk 0:02:20.7]} 32... Qxf3 {[%clk 0:01:02.6]} 33. Rxf3 {[%clk 0:02:22.6]}
33... Rxe4 {[%clk 0:01:03.8]} 34. Rb3 {[%clk 0:02:24.2]} 34... Ra4 {[%clk
0:00:55.7]} 35. Rxb7 {[%clk 0:02:23.6]} 35... Rxa3 {[%clk 0:00:56.1]} 36. Kg2
{[%clk 0:02:24.9]} 36... c5 {[%clk 0:00:53.3]} 37. Rd1 {[%clk 0:02:25.9]} 37...
Ra8 {[%clk 0:00:49.3]} 38. Rdd7 {[%clk 0:02:25.6]} 38... f6 {[%clk 0:00:45.7]}
39. Kf3 {[%clk 0:02:18.7]} 39... Rc8 {[%clk 0:00:45.8]} 40. Kg4 {[%clk
0:02:19.3]} 40... Re8 {[%clk 0:00:39.1]} 41. Kf5 {[%clk 0:02:13.7]} 41... Kh7
{[%clk 0:00:37.2]} 42. Rb1 {[%clk 0:02:13.7]} 42... Rc8 {[%clk 0:00:35.9]} 43.
Rbb7 {[%clk 0:02:10.9]} 43... Re8 {[%clk 0:00:33]} 44. Rbc7 {[%clk 0:02:05.7]}
44... Ra8 {[%clk 0:00:28.2]} 45. Rd1 {[%clk 0:01:58.5]} 45... Re8 {[%clk
0:00:22.5]} 46. Rh1+ {[%clk 0:01:58.3]} 46... Kg8 {[%clk 0:00:22.8]} 47. Kg6
{[%clk 0:01:57.6]} 47... Re3 {[%clk 0:00:20.1]} 48. Rg1 {[%clk 0:01:58.2]} 48...
Re8 {[%clk 0:00:18.7]} 49. g4 {[%clk 0:01:58.9]} 49... Rd8 {[%clk 0:00:18.5]}
50. Rh1 {[%clk 0:01:49.3]} 50... Rd4 {[%clk 0:00:16.6]} 51. Rc8 {[%clk
0:01:50.2]} 51... Rxf4 {[%clk 0:00:17.2]} 52. Rh8+ {[%clk 0:01:34.7]} 1-0

[Event "*** Titled Tuesday 3|2 Blitz"]
[Site "Chess.com"]
[Date "2016.03.01"]
[Round "7"]
[White "LADIESGET2KNOWME"]
[Black "jcgs1030"]
[Result "1-0"]
[WhiteElo "2373"]
[BlackElo "2208"]
[TimeControl "180+2"]
[EndTime "18:25:08 PST"]
[Termination "LADIESGET2KNOWME won by checkmate"]

1. d4 {[%clk 0:03:01.9]} 1... d5 {[%clk 0:03:00.5]} 2. Nf3 {[%clk 0:03:01.1]}
2... Nc6 {[%clk 0:03:00.1]} 3. g3 {[%clk 0:03:00.4]} 3... Bg4 {[%clk 0:02:56.9]}
4. Bg2 {[%clk 0:03:01.7]} 4... Nf6 {[%clk 0:02:57.9]} 5. O-O {[%clk 0:03:02.8]}
5... e6 {[%clk 0:02:59.1]} 6. c4 {[%clk 0:03:04.1]} 6... dxc4 {[%clk 0:02:59.9]}
7. Qa4 {[%clk 0:02:59.4]} 7... Bd6 {[%clk 0:02:57.5]} 8. Qxc4 {[%clk 0:03:00.2]}
8... O-O {[%clk 0:02:55.4]} 9. Nc3 {[%clk 0:03:01.7]} 9... Be7 {[%clk 0:02:26]}
10. Be3 {[%clk 0:02:50.2]} 10... Nd5 {[%clk 0:02:09.3]} 11. Nxd5 {[%clk
0:02:48.5]} 11... exd5 {[%clk 0:02:11.2]} 12. Qc2 {[%clk 0:02:45.9]} 12... Bf6
{[%clk 0:02:10.1]} 13. Rfd1 {[%clk 0:02:42.4]} 13... Re8 {[%clk 0:02:05.3]} 14.
Rac1 {[%clk 0:02:38.6]} 14... h6 {[%clk 0:01:47.2]} 15. a3 {[%clk 0:02:26.9]}
15... a6 {[%clk 0:01:44.9]} 16. b4 {[%clk 0:02:26]} 16... Qe7 {[%clk 0:01:29.3]}
17. Qc5 {[%clk 0:02:17.9]} 17... Rad8 {[%clk 0:01:24.3]} 18. h3 {[%clk
0:02:13.3]} 18... Bh5 {[%clk 0:01:23.1]} 19. g4 {[%clk 0:02:14]} 19... Bg6
{[%clk 0:01:23.7]} 20. Ne5 {[%clk 0:02:06]} 20... Nxe5 {[%clk 0:01:13.1]} 21.
dxe5 {[%clk 0:02:06.6]} 21... Bxe5 {[%clk 0:01:08.7]} 22. Bxd5 {[%clk
0:01:57.1]} 22... c6 {[%clk 0:00:59.9]} 23. Qxe7 {[%clk 0:01:55.9]} 23... Rxe7
{[%clk 0:00:53.3]} 24. Bxf7+ {[%clk 0:01:56.9]} 24... Kxf7 {[%clk 0:00:54.5]}
25. Rxd8 {[%clk 0:01:57.4]} 25... Bb2 {[%clk 0:00:56.1]} 26. Rcd1 {[%clk
0:01:47.3]} 26... Bxa3 {[%clk 0:00:57]} 27. Bc5 {[%clk 0:01:46.3]} 27... Rxe2
{[%clk 0:00:57.7]} 28. R1d7+ {[%clk 0:01:43.4]} 28... Kf6 {[%clk 0:00:57.6]} 29.
Rf8+ {[%clk 0:01:32.3]} 29... Kg5 {[%clk 0:00:57.1]} 30. Be7+ {[%clk 0:01:24.4]}
30... Rxe7 {[%clk 0:00:55]} 31. Rxe7 {[%clk 0:01:26.3]} 31... Bxb4 {[%clk
0:00:56.5]} 32. Re5+ {[%clk 0:01:25.5]} 32... Kh4 {[%clk 0:00:54.1]} 33. Rg8
{[%clk 0:01:22.7]} 33... Bc3 {[%clk 0:00:39.8]} 34. f4 {[%clk 0:00:49.5]} 34...
Bd4+ {[%clk 0:00:07.6]} 35. Kh2 {[%clk 0:00:46.3]} 35... Bxe5 {[%clk 0:00:05.6]}
36. fxe5 {[%clk 0:00:48.2]} 36... Be4 {[%clk 0:00:05.1]} 37. e6 {[%clk
0:00:46.1]} 37... Bd5 {[%clk 0:00:04.4]} 38. e7 {[%clk 0:00:46.4]} 38... Bxg8
{[%clk 0:00:04.2]} 39. e8=Q {[%clk 0:00:47.3]} 39... Bd5 {[%clk 0:00:05.8]} 40.
Qe7+ {[%clk 0:00:44.2]} 40... g5 {[%clk 0:00:05.1]} 41. Qf6 {[%clk 0:00:44.6]}
41... h5 {[%clk 0:00:05]} 42. Qh6 {[%clk 0:00:41]} 42... Bf7 {[%clk 0:00:05.9]}
43. Qh7 {[%clk 0:00:39.5]} 43... Be8 {[%clk 0:00:06.7]} 44. Qh8 {[%clk
0:00:32.9]} 44... Bf7 {[%clk 0:00:07.4]} 45. Qf6 {[%clk 0:00:33.2]} 45... Bd5
{[%clk 0:00:06.8]} 46. Qf2# {[%clk 0:00:33.2]} 1-0

[Event "*** Titled Tuesday 3|2 Blitz"]
[Site "Chess.com"]
[Date "2016.03.01"]
[Round "8"]
[White "LADIESGET2KNOWME"]
[Black "Goala"]
[Result "1-0"]
[WhiteElo "2378"]
[BlackElo "2233"]
[TimeControl "180+2"]
[EndTime "18:30:24 PST"]
[Termination "LADIESGET2KNOWME won by resignation"]

1. d4 {[%clk 0:03:01.9]} 1... e6 {[%clk 0:03:01.2]} 2. e4 {[%clk 0:03:02.4]}
2... d5 {[%clk 0:03:01.8]} 3. Nc3 {[%clk 0:03:03.8]} 3... Nf6 {[%clk 0:03:03.4]}
4. Bg5 {[%clk 0:03:03.3]} 4... Be7 {[%clk 0:03:04.9]} 5. e5 {[%clk 0:03:04.2]}
5... Nfd7 {[%clk 0:03:06.7]} 6. h4 {[%clk 0:03:04.6]} 6... O-O {[%clk 0:03:08]}
7. Bd3 {[%clk 0:03:02.6]} 7... c5 {[%clk 0:03:07.5]} 8. Nh3 {[%clk 0:03:03.7]}
8... cxd4 {[%clk 0:02:53.7]} 9. Bxe7 {[%clk 0:03:02.3]} 9... Qxe7 {[%clk
0:02:55.6]} 10. Bxh7+ {[%clk 0:03:03.3]} 10... Kxh7 {[%clk 0:02:57.5]} 11. Qh5+
{[%clk 0:03:04.1]} 11... Kg8 {[%clk 0:02:24.2]} 12. Ng5 {[%clk 0:03:06]} 1-0

[Event "*** Titled Tuesday 3|2 Blitz"]
[Site "Chess.com"]
[Date "2016.03.01"]
[Round "8"]
[White "Shivagami"]
[Black "Rating-Schmating"]
[Result "1-0"]
[WhiteElo "1860"]
[BlackElo "2237"]
[TimeControl "180+2"]
[EndTime "18:35:30 PST"]
[Termination "Shivagami won by checkmate"]

1. e4 {[%clk 0:03:01.9]} 1... e6 {[%clk 0:03:01.1]} 2. d4 {[%clk 0:03:02.1]}
2... d5 {[%clk 0:03:02.4]} 3. e5 {[%clk 0:03:03.8]} 3... c5 {[%clk 0:03:03.7]}
4. c3 {[%clk 0:03:05.4]} 4... Nc6 {[%clk 0:03:05]} 5. Nf3 {[%clk 0:03:06.2]}
5... Qb6 {[%clk 0:03:06.2]} 6. Bd3 {[%clk 0:02:55]} 6... Bd7 {[%clk 0:03:06.2]}
7. Bc2 {[%clk 0:02:55.9]} 7... Rc8 {[%clk 0:03:05.2]} 8. O-O {[%clk 0:02:56]}
8... Nge7 {[%clk 0:02:59.4]} 9. dxc5 {[%clk 0:02:38.2]} 9... Qxc5 {[%clk
0:02:57.9]} 10. Be3 {[%clk 0:02:39.8]} 10... Qa5 {[%clk 0:02:56.5]} 11. Nbd2
{[%clk 0:02:37.4]} 11... Ng6 {[%clk 0:02:56.3]} 12. Nb3 {[%clk 0:02:37.5]} 12...
Qc7 {[%clk 0:02:56.4]} 13. Re1 {[%clk 0:02:31.8]} 13... Ngxe5 {[%clk 0:02:52.7]}
14. Nxe5 {[%clk 0:02:32.4]} 14... Nxe5 {[%clk 0:02:52.5]} 15. Bf4 {[%clk
0:02:31.9]} 15... Bd6 {[%clk 0:02:53.4]} 16. Qh5 {[%clk 0:02:20.9]} 16... g6
{[%clk 0:02:34.2]} 17. Qe2 {[%clk 0:01:54.9]} 17... Nc4 {[%clk 0:02:30.5]} 18.
Bxd6 {[%clk 0:01:49.5]} 18... Nxd6 {[%clk 0:02:30.6]} 19. Qe5 {[%clk 0:01:49.1]}
19... O-O {[%clk 0:02:26]} 20. Nd4 {[%clk 0:01:46.4]} 20... Nf5 {[%clk 0:02:20]}
21. Nxf5 {[%clk 0:01:45.5]} 21... gxf5 {[%clk 0:02:12.9]} 22. Qf6 {[%clk
0:01:43.4]} 22... Qf4 {[%clk 0:02:10.4]} 23. Re3 {[%clk 0:01:42.8]} 23... Rfd8
{[%clk 0:01:57.1]} 24. Rf3 {[%clk 0:01:35.5]} 24... Qd6 {[%clk 0:01:45.6]} 25.
Re1 {[%clk 0:01:32.7]} 25... Kf8 {[%clk 0:01:41.8]} 26. Bxf5 {[%clk 0:01:30.3]}
26... Ke8 {[%clk 0:01:26.4]} 27. Rg3 {[%clk 0:01:18]} 27... Bb5 {[%clk
0:01:14.9]} 28. Bxe6 {[%clk 0:01:15.8]} 28... fxe6 {[%clk 0:01:01.7]} 29. Rxe6+
{[%clk 0:01:15.1]} 29... Kd7 {[%clk 0:01:02]} 30. Rxd6+ {[%clk 0:01:15.2]} 30...
Kc7 {[%clk 0:01:02.5]} 31. Rg7+ {[%clk 0:01:15.7]} 31... Rd7 {[%clk 0:01:03.4]}
32. Rdxd7+ {[%clk 0:01:15.6]} 32... Bxd7 {[%clk 0:01:05.3]} 33. Qe6 {[%clk
0:01:09.7]} 33... Rd8 {[%clk 0:01:05.5]} 34. Qxd5 {[%clk 0:01:11.1]} 34... Kc8
{[%clk 0:01:06.9]} 35. Rxh7 {[%clk 0:01:10.9]} 35... Bc6 {[%clk 0:01:07.4]} 36.
Qe6+ {[%clk 0:01:10.3]} 36... Kb8 {[%clk 0:01:08.5]} 37. h4 {[%clk 0:01:07.3]}
37... Rg8 {[%clk 0:01:07.9]} 38. Qxg8+ {[%clk 0:01:07.7]} 38... Be8 {[%clk
0:01:08.5]} 39. Qxe8# {[%clk 0:01:09.3]} 1-0

[Event "*** Titled Tuesday 3|2 Blitz"]
[Site "Chess.com"]
[Date "2016.03.01"]
[Round "8"]
[White "gumersindo"]
[Black "TheMagician"]
[Result "1/2-1/2"]
[WhiteElo "2325"]
[BlackElo "2168"]
[TimeControl "180+2"]
[EndTime "18:35:40 PST"]
[Termination "Game drawn - insufficient material"]

1. d4 {[%clk 0:03:01.9]} 1... Nf6 {[%clk 0:03:00.5]} 2. c4 {[%clk 0:03:02.3]}
2... c5 {[%clk 0:03:01.2]} 3. d5 {[%clk 0:03:02.8]} 3... e5 {[%clk 0:03:02]} 4.
Nc3 {[%clk 0:03:02.9]} 4... d6 {[%clk 0:03:03.3]} 5. e4 {[%clk 0:03:04.3]} 5...
Be7 {[%clk 0:03:04.4]} 6. Be3 {[%clk 0:03:04.9]} 6... Ng4 {[%clk 0:03:04.6]} 7.
Bd2 {[%clk 0:03:04.3]} 7... Bg5 {[%clk 0:03:05.3]} 8. Bxg5 {[%clk 0:03:02.5]}
8... Qxg5 {[%clk 0:03:05.5]} 9. Nf3 {[%clk 0:03:04]} 9... Qd8 {[%clk 0:03:06]}
10. Bd3 {[%clk 0:03:02.3]} 10... O-O {[%clk 0:03:06.3]} 11. Qc2 {[%clk
0:03:01.9]} 11... Na6 {[%clk 0:02:56.8]} 12. a3 {[%clk 0:02:59.3]} 12... Nc7
{[%clk 0:02:57.6]} 13. O-O {[%clk 0:02:59.7]} 13... Ne8 {[%clk 0:02:54.6]} 14.
b4 {[%clk 0:02:58.5]} 14... g6 {[%clk 0:02:46.4]} 15. bxc5 {[%clk 0:02:54.9]}
15... dxc5 {[%clk 0:02:41.9]} 16. h3 {[%clk 0:02:56.1]} 16... Ngf6 {[%clk
0:02:36.6]} 17. Nxe5 {[%clk 0:02:57.1]} 17... Nh5 {[%clk 0:02:30.5]} 18. f4
{[%clk 0:02:52.6]} 18... Nxf4 {[%clk 0:02:22.6]} 19. Rxf4 {[%clk 0:02:48.9]}
19... Qg5 {[%clk 0:02:23.5]} 20. Nxg6 {[%clk 0:02:35.8]} 20... hxg6 {[%clk
0:02:21.3]} 21. Raf1 {[%clk 0:02:34.7]} 21... Bxh3 {[%clk 0:02:09.4]} 22. Qf2
{[%clk 0:02:35.5]} 22... Nd6 {[%clk 0:01:47.2]} 23. Nb5 {[%clk 0:02:12.1]} 23...
Nxb5 {[%clk 0:01:47.4]} 24. Rxf7 {[%clk 0:02:11.6]} 24... Rxf7 {[%clk
0:01:38.1]} 25. Qxf7+ {[%clk 0:02:11.2]} 25... Kh8 {[%clk 0:01:39.7]} 26. Qf6+
{[%clk 0:02:05.5]} 26... Qxf6 {[%clk 0:01:39.9]} 27. Rxf6 {[%clk 0:02:06.7]}
27... Kg7 {[%clk 0:01:40.9]} 28. Rf2 {[%clk 0:02:01.6]} 28... Nxa3 {[%clk
0:01:33.6]} 29. gxh3 {[%clk 0:02:00]} 29... b5 {[%clk 0:01:33.8]} 30. cxb5
{[%clk 0:01:52.6]} 30... c4 {[%clk 0:01:35]} 31. Bf1 {[%clk 0:01:52.1]} 31...
Re8 {[%clk 0:01:33.4]} 32. Ra2 {[%clk 0:01:52.2]} 32... Nxb5 {[%clk 0:01:32.6]}
33. Bxc4 {[%clk 0:01:51.7]} 33... Nd6 {[%clk 0:01:33.7]} 34. Rxa7+ {[%clk
0:01:51.6]} 34... Kh6 {[%clk 0:01:34.8]} 35. Bd3 {[%clk 0:01:49.9]} 35... Nxe4
{[%clk 0:01:36]} 36. Bxe4 {[%clk 0:01:48.8]} 36... Rxe4 {[%clk 0:01:36.7]} 37.
d6 {[%clk 0:01:50.1]} 37... Re2 {[%clk 0:01:36.9]} 38. d7 {[%clk 0:01:49.4]}
38... Rd2 {[%clk 0:01:38.1]} 39. Kf1 {[%clk 0:01:50.7]} 39... Kg5 {[%clk
0:01:35.6]} 40. Ke1 {[%clk 0:01:51.9]} 40... Rd6 {[%clk 0:01:35.4]} 41. Ke2
{[%clk 0:01:52.7]} 41... Kh4 {[%clk 0:01:36.6]} 42. Ke3 {[%clk 0:01:50.7]} 42...
g5 {[%clk 0:01:37.1]} 43. Ke4 {[%clk 0:01:51.5]} 43... Kxh3 {[%clk 0:01:37.9]}
44. Ke5 {[%clk 0:01:48.2]} 44... Rd1 {[%clk 0:01:38.2]} 45. Ke6 {[%clk
0:01:49.6]} 45... g4 {[%clk 0:01:39]} 46. Ra5 {[%clk 0:01:49.3]} 46... Rxd7
{[%clk 0:01:29.7]} 47. Kxd7 {[%clk 0:01:49.9]} 47... g3 {[%clk 0:01:30.2]} 48.
Rh5+ {[%clk 0:01:49.3]} 48... Kg2 {[%clk 0:01:31.2]} 49. Ke6 {[%clk 0:01:49.9]}
49... Kf2 {[%clk 0:01:32.7]} 50. Rf5+ {[%clk 0:01:47.1]} 50... Ke2 {[%clk
0:01:33.8]} 51. Ke5 {[%clk 0:01:46.7]} 51... g2 {[%clk 0:01:34.4]} 52. Rg5
{[%clk 0:01:48.3]} 52... Kf2 {[%clk 0:01:35.2]} 53. Kf4 {[%clk 0:01:48.7]} 53...
g1=Q {[%clk 0:01:36.2]} 54. Rxg1 {[%clk 0:01:49.1]} 54... Kxg1 {[%clk
0:01:37.5]} 1/2-1/2

[Event "*** Titled Tuesday 3|2 Blitz"]
[Site "Chess.com"]
[Date "2016.03.01"]
[Round "8"]
[White "djgwards"]
[Black "evgenyermolaev"]
[Result "0-1"]
[WhiteElo "2246"]
[BlackElo "2123"]
[TimeControl "180+2"]
[EndTime "18:36:17 PST"]
[Termination "evgenyermolaev won by resignation"]

1. d4 {[%clk 0:03:01.9]} 1... Nf6 {[%clk 0:03:00.6]} 2. Nf3 {[%clk 0:02:56.5]}
2... c5 {[%clk 0:03:01.1]} 3. g3 {[%clk 0:02:51]} 3... cxd4 {[%clk 0:03:00.5]}
4. Nxd4 {[%clk 0:02:51.6]} 4... Nc6 {[%clk 0:03:01.3]} 5. Bg2 {[%clk 0:02:51.2]}
5... g6 {[%clk 0:03:01.5]} 6. O-O {[%clk 0:02:50.6]} 6... Bg7 {[%clk 0:03:02.3]}
7. Nb3 {[%clk 0:02:43]} 7... O-O {[%clk 0:03:02.1]} 8. c4 {[%clk 0:02:40.5]}
8... d6 {[%clk 0:03:02.6]} 9. Nc3 {[%clk 0:02:41.2]} 9... Be6 {[%clk 0:03:01.9]}
10. c5 {[%clk 0:02:38.4]} 10... d5 {[%clk 0:02:50.2]} 11. Be3 {[%clk 0:02:17.6]}
11... Ng4 {[%clk 0:02:41]} 12. Nxd5 {[%clk 0:02:09.5]} 12... Bxd5 {[%clk
0:02:37.5]} 13. Qxd5 {[%clk 0:02:08.3]} 13... Nxe3 {[%clk 0:02:35.3]} 14. fxe3
{[%clk 0:02:07.7]} 14... Bxb2 {[%clk 0:02:32.7]} 15. Rab1 {[%clk 0:02:08]} 15...
Bg7 {[%clk 0:02:31.9]} 16. Rfd1 {[%clk 0:01:43.3]} 16... Qc7 {[%clk 0:02:31.5]}
17. Nd4 {[%clk 0:01:28.4]} 17... Rfd8 {[%clk 0:02:26.7]} 18. Qc4 {[%clk
0:01:29.3]} 18... Qe5 {[%clk 0:02:10.7]} 19. Nxc6 {[%clk 0:01:25.9]} 19... Qxe3+
{[%clk 0:02:10.2]} 20. Kh1 {[%clk 0:01:26.4]} 20... bxc6 {[%clk 0:02:04.7]} 21.
Rf1 {[%clk 0:01:06.7]} 21... e6 {[%clk 0:02:00.1]} 22. Rb7 {[%clk 0:01:05.9]}
22... Rf8 {[%clk 0:01:53.6]} 23. Bxc6 {[%clk 0:00:59.3]} 23... Rac8 {[%clk
0:01:52.8]} 24. Qa4 {[%clk 0:00:34.5]} 24... Qxe2 {[%clk 0:01:33]} 25. Bg2
{[%clk 0:00:34.7]} 25... Rxc5 {[%clk 0:01:31.5]} 26. Qxa7 {[%clk 0:00:28.9]}
26... Rc2 {[%clk 0:01:32.2]} 27. Rg1 {[%clk 0:00:13.6]} 27... Rxa2 {[%clk
0:01:32.5]} 28. Qb6 {[%clk 0:00:08.9]} 28... Rb2 {[%clk 0:01:29.3]} 29. Qa7
{[%clk 0:00:07.2]} 29... Ra2 {[%clk 0:01:21.7]} 30. Qb6 {[%clk 0:00:08]} 30...
Qd2 {[%clk 0:01:21.1]} 31. Qb4 {[%clk 0:00:05.3]} 31... Bc3 {[%clk 0:01:18.8]}
32. Qf4 {[%clk 0:00:03.7]} 32... Qxf4 {[%clk 0:01:10.1]} 33. gxf4 {[%clk
0:00:04.3]} 33... Rd8 {[%clk 0:01:11.6]} 34. Rf1 {[%clk 0:00:05.2]} 34... Rdd2
{[%clk 0:01:12.1]} 35. Rg1 {[%clk 0:00:06.4]} 35... Bd4 {[%clk 0:01:12.7]} 36.
Rb8+ {[%clk 0:00:07.7]} 36... Kg7 {[%clk 0:01:13.6]} 0-1